fUSD/lending_fUSD_20260621
["ID","MTS","AMOUNT","RATE_DAILY","PERIOD"]
[425880928,1782018633000,-279.24005098,0.00012868,2]
[425880927,1782018633000,-160.78665199,0.00012867,7]
[425880931,1782018633000,-1000.0,0.00012872,2]
[425880933,1782018633000,-216.32317309,0.00012883,2]
[425880930,1782018633000,-1000.0,0.00012872,2]
[425880935,1782018633000,-150.0,0.00013122,2]
[425880929,1782018633000,-160.0,0.00012871,2]
[425880934,1782018633000,-150.0,0.00012993,2]
[425880936,1782018633000,-150.0,0.00013251,2]
[425880932,1782018633000,-160.0,0.00012883,2]
[425880938,1782018633000,-150.0,0.00013508,2]
[425880956,1782018633000,-500.0,0.0001415,2]
[425880940,1782018633000,-500.0,0.00013698,2]
[425880941,1782018633000,-502.63850258,0.00013698,2]
[425880944,1782018633000,-500.0,0.00013698,2]
[425880945,1782018633000,-500.0,0.00013698,2]
[425880948,1782018633000,-500.0,0.00013698,2]
[425880943,1782018633000,-500.0,0.00013698,2]
[425880946,1782018633000,-500.0,0.00013698,2]
[425880947,1782018633000,-500.0,0.00013698,2]
[425880942,1782018633000,-500.0,0.00013698,2]
[425880949,1782018633000,-500.0,0.00013698,2]
[425880951,1782018633000,-255.0,0.0001397,2]
[425880950,1782018633000,-551.32044359,0.00013698,2]
[425880952,1782018633000,-250.0,0.00014127,2]
[425880939,1782018633000,-150.0,0.00013637,2]
[425880983,1782018633000,-166.66,0.00015793,2]
[425881001,1782018633000,-213.11694844,0.000199,2]
[425880984,1782018633000,-216.1,0.00015868,2]
[425881008,1782018633000,-200.0,0.0002,2]
[425881018,1782018633000,-158.0,0.0002,2]
[425881014,1782018633000,-4303.44349647,0.0002,2]
[425881015,1782018633000,-18127.61789516,0.0002,2]
[425881021,1782018633000,-955.9338526,0.00020175,2]
[425881020,1782018633000,-151.0,0.0002,2]
[425881019,1782018633000,-518.0,0.0002,2]
[425881023,1782018633000,-441.24308476,0.000207,2]
[425881025,1782018633000,-441.24308476,0.000209,2]
[425881026,1782018633000,-151.0,0.00020933,2]
[425881022,1782018633000,-441.24308476,0.000205,2]
[425881024,1782018633000,-187.6898204,0.00020836,2]
[425881027,1782018633000,-151.0,0.00020933,2]
[425881028,1782018633000,-151.0,0.00020933,2]
[425881030,1782018633000,-151.0,0.00020933,2]
[425881029,1782018633000,-500.0,0.00020933,2]
[425881032,1782018633000,-151.0,0.00020933,2]
[425881031,1782018633000,-500.0,0.00020933,2]
[425881034,1782018633000,-151.0,0.00020933,2]
[425881033,1782018633000,-435.24228407,0.00020933,2]
[425881035,1782018633000,-151.0,0.00020933,2]
[425881037,1782018633000,-151.0,0.00020933,2]
[425881036,1782018633000,-151.0,0.00020933,2]
[425881040,1782018633000,-151.0,0.00020933,2]
[425881038,1782018633000,-151.0,0.00020933,2]
[425881010,1782018633000,-52551.3811686,0.0002,2]
[425881011,1782018633000,-4977.62640007,0.0002,2]
[425881039,1782018633000,-151.0,0.00020933,2]
[425881013,1782018633000,-13088.35374587,0.0002,2]
[425881016,1782018633000,-37991.66905022,0.0002,2]
[425880986,1782018633000,-3090.03,0.00016406,2]
[425880990,1782018633000,-613.45,0.00016438,2]
[425880987,1782018633000,-500.0,0.00016438,2]
[425880989,1782018633000,-538.5,0.00016438,2]
[425880988,1782018633000,-299.60887444,0.00016438,2]
[425880991,1782018633000,-156.54,0.00016565,2]
[425880992,1782018633000,-1000.0,0.00016749,2]
[425880994,1782018633000,-739.42685882,0.00017703,2]
[425880993,1782018633000,-955.9338526,0.00016888,2]
[425880995,1782018633000,-160.86,0.00018202,2]
[425880996,1782018633000,-955.9338526,0.00018531,2]
[425880997,1782018633000,-538.0,0.00019053,5]
[425880985,1782018633000,-156.54,0.00016063,2]
[425880999,1782018633000,-150.0,0.00019334,2]
[425881003,1782018633000,-3950.0,0.0002,2]
[425881009,1782018633000,-1063.2122824,0.0002,2]
[425881017,1782018633000,-153.0,0.0002,2]
[425881007,1782018633000,-540.72869725,0.0002,2]
[425881006,1782018633000,-156.0,0.0002,2]
[425881012,1782018633000,-932.40615889,0.0002,2]
[425881002,1782018633000,-25053.7467694,0.0002,2]
[425881041,1782018633000,-156.0,0.00021,2]
[425880998,1782018633000,-1651.01,0.00019185,2]
[425881004,1782018633000,-26887.95481966,0.0002,2]
[425881000,1782018633000,-329.64,0.00019493,2]
[425881005,1782018633000,-1317.14718784,0.0002,2]
[425881050,1782018634000,-226.26668639,0.000215,2]
[425881065,1782018634000,-190.71,0.00023368,7]
[425881061,1782018634000,-518.0,0.00023158,5]
[425881057,1782018634000,-209.77,0.00022306,2]
[425881055,1782018634000,-153.0,0.00022,2]
[425881056,1782018634000,-213.11694835,0.00022152,2]
[425881053,1782018634000,-5000.0,0.00021918,2]
[425881045,1782018634000,-441.24308476,0.000211,2]
[425881054,1782018634000,-156.0,0.00022,2]
[425881047,1782018634000,-441.24308476,0.000213,2]
[425881051,1782018634000,-150.0,0.00021706,2]
[425881049,1782018634000,-58618.77378393,0.000215,2]
[425881048,1782018634000,-170.11,0.00021473,2]
[425881046,1782018634000,-4877.78588974,0.00021273,2]
[425881044,1782018634000,-213.11694835,0.00021026,2]
[425881043,1782018634000,-165.0,0.00021,2]
[425881042,1782018634000,-153.0,0.00021,2]
[425881052,1782018634000,-955.9338526,0.00021818,2]
[425881060,1782018634000,-153.0,0.00023,2]
[425881059,1782018634000,-156.0,0.00023,2]
[425881058,1782018634000,-150.0,0.0002254,2]
[425881063,1782018634000,-231.57,0.00023294,2]
[425881081,1782018634000,-994.3940699,0.00025,2]
[425881079,1782018634000,-2435.71471383,0.00025,2]
[425881078,1782018634000,-500.0,0.00025,2]
[425881076,1782018634000,-17169.504,0.00025,2]
[425881077,1782018634000,-612.36360206,0.00025,2]
[425881072,1782018634000,-1000.0,0.00024658,2]
[425881075,1782018634000,-91318.37098684,0.00025,2]
[425881080,1782018634000,-461.33458134,0.00025,2]
[425881073,1782018634000,-185.0,0.00024699,2]
[425881074,1782018634000,-150.0,0.0002485,2]
[425881062,1782018634000,-213.11694835,0.00023279,2]
[425881064,1782018634000,-184.0,0.00023329,2]
[425881067,1782018634000,-150.0,0.00023667,2]
[425881066,1782018634000,-955.9338526,0.00023462,2]
[425881070,1782018634000,-213.11694835,0.00024405,2]
[425881069,1782018634000,-153.0,0.00024,2]
[425881071,1782018634000,-298.743958,0.000245,14]
[425881068,1782018634000,-156.0,0.00024,2]
[425881096,1782018638000,-213.11694835,0.00025531,2]
[425881097,1782018638000,-150.0,0.00026093,2]
[425881095,1782018638000,-955.9338526,0.00025105,2]
[425881094,1782018638000,-678.0,0.00025095,5]
[425881090,1782018638000,-878.74321211,0.00025,2]
[425881093,1782018638000,-161.0,0.00025,2]
[425881092,1782018638000,-16592.9135153,0.00025,5]
[425881088,1782018638000,-839.61789146,0.00012865,2]
[425881091,1782018638000,-61650.75234342,0.00025,2]
[425881086,1782018638000,-1492.44719547,0.00012865,2]
[425881085,1782018638000,-17.68975716,0.00012865,2]
[425881084,1782018638000,-482.31024284,0.00012865,2]
[425881098,1782018638000,-4129.802,0.00026296,13]
[425881089,1782018638000,-286.70712315,0.00012865,2]
[425881087,1782018638000,-634.60582122,0.00012865,2]
[425881101,1782018638000,-6081.0,0.00026592,2]
[425881100,1782018638000,-518.0,0.00026316,8]
[425881102,1782018638000,-3647.0,0.00026592,2]
[425881111,1782018638000,-743.0,0.00027832,10]
[425881113,1782018638000,-955.9338526,0.00028392,2]
[425881114,1782018638000,-596.09249806,0.00028414,5]
[425881115,1782018638000,-688.95889302,0.00028414,5]
[425881110,1782018638000,-652.1,0.000274,7]
[425881109,1782018638000,-150.0,0.00027398,2]
[425881112,1782018638000,-157.06,0.0002788,2]
[425881108,1782018638000,-2173.11,0.00027397,10]
[425881107,1782018638000,-2607.73,0.00027397,10]
[425881099,1782018638000,-165.052,0.00026296,13]
[425881104,1782018638000,-150.25,0.00026805,2]
[425881105,1782018638000,-158.30503689,0.00027397,2]
[425881106,1782018638000,-3129.28,0.00027397,10]
[425881103,1782018638000,-955.9338526,0.00026749,2]
[425881148,1782018640000,-250.0,0.00029227,13]
[425881140,1782018640000,-160.0,0.00028851,30]
[425881144,1782018640000,-156.0,0.00028858,30]
[425881145,1782018640000,-652.1,0.000289,7]
[425881147,1782018640000,-109621.78899485,0.00029,2]
[425881146,1782018640000,-157376.58696425,0.00029,7]
[425881152,1782018640000,-504.92067818,0.00029389,2]
[425881151,1782018640000,-194.86063,0.0002934,2]
[425881153,1782018640000,-194.86064,0.0002939,2]
[425881157,1782018640000,-155.559837,0.00029489,7]
[425881154,1782018640000,-518.0,0.00029474,11]
[425881143,1782018640000,-156.0,0.00028858,30]
[425881150,1782018640000,-194.86064,0.0002929,2]
[425881141,1782018640000,-158.0,0.00028851,30]
[425881131,1782018640000,-1458.38,0.000285,7]
[425881138,1782018640000,-155.0,0.00028851,30]
[425881139,1782018640000,-155.0,0.00028851,30]
[425881132,1782018640000,-327.89587836,0.0002858,5]
[425881137,1782018640000,-158.09042495,0.00028851,30]
[425881136,1782018640000,-153.0,0.00028851,30]
[425881155,1782018640000,-3000.0,0.00029479,2]
[425881133,1782018640000,-297.08,0.00028766,2]
[425881134,1782018640000,-158.30503689,0.00028766,2]
[425881135,1782018640000,-150.0,0.00028767,2]
[425881129,1782018640000,-3134.94860892,0.00028414,5]
[425881130,1782018640000,-298.743958,0.0002842,14]
[425881128,1782018640000,-1750.90154835,0.00027397,10]
[425881127,1782018640000,-60.02845165,0.00027397,10]
[425881126,1782018640000,-213.11694835,0.00026657,2]
[425881142,1782018640000,-162.0,0.00028858,30]
[425881156,1782018640000,-643.94,0.00029488,2]
[425881149,1782018640000,-250.0,0.00029227,13]
[425881159,1782018640000,-1762.06446094,0.00029489,2]
[425881158,1782018640000,-179.41069847,0.00029489,2]
[425881189,1782018640000,-500.0,0.00029589,2]
[425881188,1782018640000,-500.0,0.00029589,2]
[425881186,1782018640000,-500.0,0.00029589,2]
[425881187,1782018640000,-500.0,0.00029589,2]
[425881185,1782018640000,-500.0,0.00029589,2]
[425881184,1782018640000,-502.63850258,0.00029589,2]
[425881183,1782018640000,-504.76660242,0.00029589,2]
[425881181,1782018640000,-503.52334901,0.00029589,2]
[425881182,1782018640000,-3174.2198206,0.00029589,2]
[425881179,1782018640000,-573.46235251,0.00029589,2]
[425881178,1782018640000,-500.0,0.00029589,2]
[425881177,1782018640000,-500.0,0.00029589,2]
[425881174,1782018640000,-551.47855611,0.00029588,2]
[425881176,1782018640000,-500.0,0.00029589,2]
[425881180,1782018640000,-590.3050494,0.00029589,2]
[425881173,1782018640000,-551.47855611,0.00029588,2]
[425881175,1782018640000,-3295.0353011,0.00029589,2]
[425881160,1782018640000,-10000.0,0.00029489,2]
[425881162,1782018640000,-2000.0,0.00029489,2]
[425881167,1782018640000,-396.1,0.00029508,2]
[425881165,1782018640000,-396.28,0.00029507,2]
[425881168,1782018640000,-551.47855612,0.00029588,2]
[425881163,1782018640000,-396.28,0.00029493,2]
[425881161,1782018640000,-33314.5604,0.00029489,2]
[425881164,1782018640000,-813.2,0.000295,7]
[425881170,1782018640000,-551.47855612,0.00029588,2]
[425881169,1782018640000,-551.47855612,0.00029588,2]
[425881172,1782018640000,-551.47855612,0.00029588,2]
[425881171,1782018640000,-551.47855612,0.00029588,2]
[425881166,1782018640000,-644.19,0.00029507,2]
[425881208,1782018641000,-508.0,0.00029589,2]
[425881210,1782018641000,-500.0,0.00029589,2]
[425881209,1782018641000,-500.0,0.00029589,2]
[425881213,1782018641000,-472.15732194,0.00029589,2]
[425881212,1782018641000,-500.0,0.00029589,2]
[425881215,1782018641000,-653.36,0.00029589,2]
[425881217,1782018641000,-500.0,0.00029589,2]
[425881216,1782018641000,-500.0,0.00029589,2]
[425881218,1782018641000,-500.0,0.00029589,2]
[425881219,1782018641000,-500.0,0.00029589,2]
[425881211,1782018641000,-500.0,0.00029589,2]
[425881220,1782018641000,-506.6910939,0.00029589,2]
[425881222,1782018641000,-500.0,0.00029589,2]
[425881214,1782018641000,-500.0,0.00029589,2]
[425881205,1782018641000,-500.0,0.00029589,2]
[425881193,1782018641000,-500.0,0.00029589,2]
[425881206,1782018641000,-500.0,0.00029589,2]
[425881207,1782018641000,-500.0,0.00029589,2]
[425881200,1782018641000,-500.0,0.00029589,2]
[425881198,1782018641000,-500.0,0.00029589,2]
[425881204,1782018641000,-500.0,0.00029589,2]
[425881221,1782018641000,-512.12711123,0.00029589,2]
[425881203,1782018641000,-500.0,0.00029589,2]
[425881202,1782018641000,-500.0,0.00029589,2]
[425881195,1782018641000,-500.0,0.00029589,2]
[425881196,1782018641000,-500.0,0.00029589,2]
[425881197,1782018641000,-500.0,0.00029589,2]
[425881191,1782018641000,-500.0,0.00029589,2]
[425881192,1782018641000,-500.0,0.00029589,2]
[425881190,1782018641000,-500.0,0.00029589,2]
[425881199,1782018641000,-500.0,0.00029589,2]
[425881223,1782018641000,-500.0,0.00029589,2]
[425881247,1782018641000,-292.87,0.00029589,2]
[425881227,1782018641000,-503.08104312,0.00029589,2]
[425881225,1782018641000,-500.0,0.00029589,2]
[425881256,1782018641000,-128.9284122,0.00029589,2]
[425881255,1782018641000,-500.77738039,0.00029589,2]
[425881257,1782018641000,-415.04958309,0.00029589,2]
[425881253,1782018641000,-228.49714582,0.00029589,2]
[425881254,1782018641000,-500.0,0.00029589,2]
[425881250,1782018641000,-160.72943778,0.00029589,2]
[425881252,1782018641000,-534.83285418,0.00029589,2]
[425881251,1782018641000,-339.27056222,0.00029589,2]
[425881249,1782018641000,-259.76757935,0.00029589,2]
[425881248,1782018641000,-199.34182535,0.00029589,2]
[425881244,1782018641000,-451.58438286,0.00029589,2]
[425881245,1782018641000,-500.0,0.00029589,2]
[425881242,1782018641000,-500.0,0.00029589,2]
[425881239,1782018641000,-500.0,0.00029589,2]
[425881246,1782018641000,-7.78817465,0.00029589,2]
[425881240,1782018641000,-500.0,0.00029589,2]
[425881226,1782018641000,-500.0,0.00029589,2]
[425881224,1782018641000,-500.0,0.00029589,2]
[425881231,1782018641000,-500.0,0.00029589,2]
[425881229,1782018641000,-500.0,0.00029589,2]
[425881230,1782018641000,-500.0,0.00029589,2]
[425881237,1782018641000,-500.0,0.00029589,2]
[425881232,1782018641000,-500.0,0.00029589,2]
[425881228,1782018641000,-500.0,0.00029589,2]
[425881234,1782018641000,-566.31502955,0.00029589,2]
[425881236,1782018641000,-500.0,0.00029589,2]
[425881238,1782018641000,-500.0,0.00029589,2]
[425881235,1782018641000,-500.0,0.00029589,2]
[425881243,1782018641000,-48.41561714,0.00029589,2]
[425881241,1782018641000,-500.0,0.00029589,2]
[425881233,1782018641000,-500.0,0.00029589,2]
[425881266,1782018643000,-314.47253761,0.000285,2]
[425881263,1782018643000,-226.65948052,0.000285,2]
[425881262,1782018643000,-206.11706339,0.00012865,2]
[425881264,1782018643000,-396.39720214,0.000285,2]
[425881267,1782018643000,-327.56004162,0.000285,2]
[425881265,1782018643000,-3974.98522897,0.000285,2]
[425881271,1782018643000,-494.6943459,0.00012865,2]
[425881270,1782018643000,-1582.2173035,0.00012865,2]
[425881269,1782018643000,-696.56519026,0.00012865,2]
[425881273,1782018643000,-778.22176752,0.000285,2]
[425881272,1782018643000,-15.44524168,0.000285,2]
[425881274,1782018643000,-4279.16143741,0.000285,2]
[425881268,1782018643000,-479.90119164,0.00012865,2]
[425881310,1782018646000,-669.02,0.00029589,2]
[425881295,1782018646000,-500.0,0.00029589,2]
[425881300,1782018646000,-500.0,0.00029589,2]
[425881299,1782018646000,-500.0,0.00029589,2]
[425881298,1782018646000,-500.0,0.00029589,2]
[425881308,1782018646000,-500.0,0.00029589,2]
[425881307,1782018646000,-500.0,0.00029589,2]
[425881305,1782018646000,-500.0,0.00029589,2]
[425881296,1782018646000,-500.0,0.00029589,2]
[425881306,1782018646000,-500.0,0.00029589,2]
[425881309,1782018646000,-500.0,0.00029589,2]
[425881302,1782018646000,-500.0,0.00029589,2]
[425881301,1782018646000,-500.0,0.00029589,2]
[425881290,1782018646000,-500.0,0.00029589,2]
[425881297,1782018646000,-500.0,0.00029589,2]
[425881289,1782018646000,-500.0,0.00029589,2]
[425881292,1782018646000,-577.26,0.00029589,2]
[425881294,1782018646000,-500.0,0.00029589,2]
[425881293,1782018646000,-500.0,0.00029589,2]
[425881288,1782018646000,-156.02200471,0.00029589,2]
[425881286,1782018646000,-178911.53586188,0.000285,2]
[425881287,1782018646000,-396.23,0.00029493,2]
[425881285,1782018646000,-8469.69048486,0.000285,2]
[425881283,1782018646000,-19.53736989,0.00028144,2]
[425881284,1782018646000,-1462.76424532,0.000285,2]
[425881281,1782018646000,-213.11694835,0.00027784,2]
[425881282,1782018646000,-195.46263011,0.00028144,2]
[425881291,1782018646000,-500.0,0.00029589,2]
[425881303,1782018646000,-500.0,0.00029589,2]
[425881304,1782018646000,-500.0,0.00029589,2]
[425881340,1782018646000,-500.0,0.00029589,2]
[425881341,1782018646000,-309.26876105,0.00029589,2]
[425881338,1782018646000,-593.6,0.00029589,2]
[425881339,1782018646000,-500.0,0.00029589,2]
[425881333,1782018646000,-500.0,0.00029589,2]
[425881336,1782018646000,-500.0,0.00029589,2]
[425881335,1782018646000,-500.0,0.00029589,2]
[425881330,1782018646000,-500.0,0.00029589,2]
[425881334,1782018646000,-504.3253233,0.00029589,2]
[425881337,1782018646000,-500.0,0.00029589,2]
[425881311,1782018646000,-500.0,0.00029589,2]
[425881332,1782018646000,-320.40893862,0.00029589,2]
[425881329,1782018646000,-743.19,0.00029589,2]
[425881328,1782018646000,-517.54,0.00029589,2]
[425881325,1782018646000,-626.03,0.00029589,2]
[425881331,1782018646000,-614.5,0.00029589,2]
[425881327,1782018646000,-500.0,0.00029589,2]
[425881312,1782018646000,-500.0,0.00029589,2]
[425881313,1782018646000,-500.0,0.00029589,2]
[425881326,1782018646000,-500.0,0.00029589,2]
[425881314,1782018646000,-500.0,0.00029589,2]
[425881316,1782018646000,-500.0,0.00029589,2]
[425881319,1782018646000,-500.0,0.00029589,2]
[425881315,1782018646000,-507.68186157,0.00029589,2]
[425881321,1782018646000,-518.89859704,0.00029589,2]
[425881324,1782018646000,-500.0,0.00029589,2]
[425881323,1782018646000,-500.0,0.00029589,2]
[425881318,1782018646000,-627.34,0.00029589,2]
[425881322,1782018646000,-500.0,0.00029589,2]
[425881317,1782018646000,-500.0,0.00029589,2]
[425881372,1782018647000,-875.44,0.00029589,2]
[425881369,1782018647000,-500.0,0.00029589,2]
[425881373,1782018647000,-500.0,0.00029589,2]
[425881371,1782018647000,-500.0,0.00029589,2]
[425881375,1782018647000,-500.0,0.00029589,2]
[425881374,1782018647000,-500.0,0.00029589,2]
[425881370,1782018647000,-500.0,0.00029589,2]
[425881377,1782018647000,-500.0,0.00029589,2]
[425881376,1782018647000,-500.0,0.00029589,2]
[425881378,1782018647000,-500.0,0.00029589,2]
[425881391,1782018647000,-500.0,0.00029589,2]
[425881379,1782018647000,-500.0,0.00029589,2]
[425881381,1782018647000,-500.0,0.00029589,2]
[425881384,1782018647000,-500.0,0.00029589,2]
[425881383,1782018647000,-704.63,0.00029589,2]
[425881386,1782018647000,-500.0,0.00029589,2]
[425881387,1782018647000,-567.17,0.00029589,2]
[425881388,1782018647000,-500.0,0.00029589,2]
[425881382,1782018647000,-579.09603838,0.00029589,2]
[425881385,1782018647000,-1192.72,0.00029589,2]
[425881368,1782018647000,-500.0,0.00029589,2]
[425881380,1782018647000,-500.0,0.00029589,2]
[425881367,1782018647000,-500.0,0.00029589,2]
[425881348,1782018647000,-500.0,0.00029589,2]
[425881365,1782018647000,-500.0,0.00029589,2]
[425881342,1782018647000,-500.0,0.00029589,2]
[425881345,1782018647000,-500.0,0.00029589,2]
[425881343,1782018647000,-500.0,0.00029589,2]
[425881346,1782018647000,-1298.43,0.00029589,2]
[425881347,1782018647000,-830.76,0.00029589,2]
[425881344,1782018647000,-500.0,0.00029589,2]
[425881351,1782018647000,-500.0,0.00029589,2]
[425881350,1782018647000,-913.08,0.00029589,2]
[425881352,1782018647000,-500.0,0.00029589,2]
[425881354,1782018647000,-500.0,0.00029589,2]
[425881353,1782018647000,-500.0,0.00029589,2]
[425881355,1782018647000,-500.0,0.00029589,2]
[425881356,1782018647000,-527.56,0.00029589,2]
[425881358,1782018647000,-500.0,0.00029589,2]
[425881364,1782018647000,-500.0,0.00029589,2]
[425881359,1782018647000,-500.0,0.00029589,2]
[425881357,1782018647000,-500.0,0.00029589,2]
[425881360,1782018647000,-500.0,0.00029589,2]
[425881363,1782018647000,-500.0,0.00029589,2]
[425881361,1782018647000,-726.74,0.00029589,2]
[425881362,1782018647000,-500.0,0.00029589,2]
[425881366,1782018647000,-845.19,0.00029589,2]
[425881389,1782018647000,-504.95,0.00029589,2]
[425881435,1782018647000,-500.0,0.00029589,2]
[425881390,1782018647000,-500.0,0.00029589,2]
[425881420,1782018647000,-500.0,0.00029589,2]
[425881417,1782018647000,-500.0,0.00029589,2]
[425881419,1782018647000,-500.0,0.00029589,2]
[425881424,1782018647000,-500.0,0.00029589,2]
[425881425,1782018647000,-500.0,0.00029589,2]
[425881421,1782018647000,-500.0,0.00029589,2]
[425881422,1782018647000,-551.49,0.00029589,2]
[425881426,1782018647000,-325.11260092,0.00029589,2]
[425881428,1782018647000,-500.0,0.00029589,2]
[425881427,1782018647000,-500.0,0.00029589,2]
[425881392,1782018647000,-500.0,0.00029589,2]
[425881436,1782018647000,-500.0,0.00029589,2]
[425881431,1782018647000,-500.0,0.00029589,2]
[425881429,1782018647000,-649.55,0.00029589,2]
[425881432,1782018647000,-1345.31,0.00029589,2]
[425881434,1782018647000,-500.0,0.00029589,2]
[425881437,1782018647000,-500.0,0.00029589,2]
[425881433,1782018647000,-500.0,0.00029589,2]
[425881430,1782018647000,-500.0,0.00029589,2]
[425881439,1782018647000,-695.39,0.00029589,2]
[425881438,1782018647000,-500.0,0.00029589,2]
[425881418,1782018647000,-500.0,0.00029589,2]
[425881414,1782018647000,-500.0,0.00029589,2]
[425881423,1782018647000,-500.0,0.00029589,2]
[425881413,1782018647000,-500.0,0.00029589,2]
[425881393,1782018647000,-500.0,0.00029589,2]
[425881395,1782018647000,-500.0,0.00029589,2]
[425881399,1782018647000,-500.0,0.00029589,2]
[425881394,1782018647000,-500.0,0.00029589,2]
[425881396,1782018647000,-500.0,0.00029589,2]
[425881415,1782018647000,-509.43854376,0.00029589,2]
[425881398,1782018647000,-500.0,0.00029589,2]
[425881400,1782018647000,-2019.42,0.00029589,2]
[425881402,1782018647000,-1592.33,0.00029589,2]
[425881401,1782018647000,-500.0,0.00029589,2]
[425881403,1782018647000,-509.08760568,0.00029589,2]
[425881397,1782018647000,-500.0,0.00029589,2]
[425881405,1782018647000,-616.64290821,0.00029589,2]
[425881406,1782018647000,-500.0,0.00029589,2]
[425881407,1782018647000,-500.0,0.00029589,2]
[425881409,1782018647000,-500.0,0.00029589,2]
[425881408,1782018647000,-500.0,0.00029589,2]
[425881411,1782018647000,-672.54,0.00029589,2]
[425881412,1782018647000,-500.0,0.00029589,2]
[425881410,1782018647000,-500.0,0.00029589,2]
[425881404,1782018647000,-500.0,0.00029589,2]
[425881416,1782018647000,-1376.61,0.00029589,2]
[425881455,1782018648000,-500.0,0.00029589,2]
[425881459,1782018648000,-500.0,0.00029589,2]
[425881457,1782018648000,-500.0,0.00029589,2]
[425881461,1782018648000,-500.0,0.00029589,2]
[425881464,1782018648000,-905.16,0.00029589,2]
[425881460,1782018648000,-500.0,0.00029589,2]
[425881462,1782018648000,-500.0,0.00029589,2]
[425881463,1782018648000,-500.0,0.00029589,2]
[425881465,1782018648000,-500.0,0.00029589,2]
[425881456,1782018648000,-500.0,0.00029589,2]
[425881458,1782018648000,-500.0,0.00029589,2]
[425881454,1782018648000,-500.0,0.00029589,2]
[425881468,1782018648000,-500.0,0.00029589,2]
[425881450,1782018648000,-222.85,0.00029589,2]
[425881451,1782018648000,-500.0,0.00029589,2]
[425881452,1782018648000,-500.0,0.00029589,2]
[425881447,1782018648000,-500.0,0.00029589,2]
[425881444,1782018648000,-500.0,0.00029589,2]
[425881442,1782018648000,-500.0,0.00029589,2]
[425881446,1782018648000,-500.0,0.00029589,2]
[425881449,1782018648000,-500.0,0.00029589,2]
[425881443,1782018648000,-500.0,0.00029589,2]
[425881448,1782018648000,-500.0,0.00029589,2]
[425881445,1782018648000,-500.0,0.00029589,2]
[425881441,1782018648000,-500.0,0.00029589,2]
[425881440,1782018648000,-500.0,0.00029589,2]
[425881453,1782018648000,-592.77,0.00029589,2]
[425881467,1782018648000,-500.0,0.00029589,2]
[425881476,1782018648000,-500.0,0.00029589,2]
[425881473,1782018648000,-500.0,0.00029589,2]
[425881490,1782018648000,-500.0,0.00029589,2]
[425881497,1782018648000,-501.49,0.00029589,2]
[425881491,1782018648000,-500.0,0.00029589,2]
[425881493,1782018648000,-500.0,0.00029589,2]
[425881498,1782018648000,-500.0,0.00029589,2]
[425881492,1782018648000,-500.0,0.00029589,2]
[425881488,1782018648000,-500.0,0.00029589,2]
[425881489,1782018648000,-500.0,0.00029589,2]
[425881487,1782018648000,-788.18,0.00029589,2]
[425881485,1782018648000,-500.0,0.00029589,2]
[425881486,1782018648000,-500.0,0.00029589,2]
[425881479,1782018648000,-500.0,0.00029589,2]
[425881496,1782018648000,-500.0,0.00029589,2]